Cogmind - Beta 13 --- EXPLORER MODE // 2024.04.15 @ 17:28:16 Player: Laika Result: Self-destructed Performance ------------- Evolutions (2) 1000 Regions Visited (4) 800 Robots Destroyed (48) 240 Value Destroyed (1235) 1235 Prototype IDs (1) 20 Alien Tech Used (0) 0 Bonus (0) 0 TOTAL SCORE: 3295 Bonus ------- None Cogmind --------- Core Integrity 550/550 Matter 250/300 Energy 280/280 System Corruption 0% Temperature Cool (0) Movement Walking (120) Location -8/Materials Parts ------- > --- POWER (2) -------- Cooled Ion Engine > --- PROPULSION (3) --- Improved Carbon-fiber Leg Improved Carbon-fiber Leg > --- UTILITY (5) ------ Medium Storage Unit Visual Processing Unit Terrain Scan Processor Shield Generator Tractor Beam > --- WEAPON (2) ------- Beam Rifle Autogun > --- INVENTORY (10) --- Cooled Ion Engine Improved Carbon-fiber Leg VTOL Module VTOL Module Improved Heat Sink Huge Storage Unit Signal Interpreter Datajack Katana Peak State ------------ > --- POWER ------------ Cooled Ion Engine > --- PROPULSION ------- Improved Carbon-fiber Leg Improved Carbon-fiber Leg VTOL Module > --- UTILITY ---------- Medium Storage Unit Visual Processing Unit Terrain Scan Processor Shield Generator Tractor Beam > --- WEAPON ----------- Beam Rifle Autogun > --- INVENTORY -------- Cooled Ion Engine Light Treads Light Treads Improved Carbon-fiber Leg VTOL Module Improved Heat Sink Huge Storage Unit Signal Interpreter Datajack Katana [Rating: 27] Favorites ----------- Power Light Nuclear Core Engine Light Ion Engine Power Core Light Nuclear Core Propulsion Improved Treads Treads Improved Treads Leg Aluminum Leg Flight Unit VTOL Module Utility Medium Storage Unit Device Tractor Beam Storage Medium Storage Unit Processor Visual Processing Unit Protection Power Shielding Weapon Light Cannon Energy Gun Beam Rifle Ballistic Gun Autogun Ballistic Cannon Light Cannon Build | -11 -10 -9 -9 -8 ------- Run | Yrd Mat Mat Sto Mat Slots Evolved 5 | . 1 2 . 2 Power 1 | . . . . 1 Propulsion 1 | . . . . 1 Utility 3 | . 1 2 . . Weapon . | . . . . . Parts Attached 26 | 7 8 2 4 5 Power 3 | 1 1 . 1 . Engine 2 | 1 . . 1 . Core 1 | . 1 . . . Reactor . | . . . . . Propulsion 9 | 2 2 . . 5 Treads 2 | . 2 . . . Leg 4 | 2 . . . 2 Wheel . | . . . . . Hover . | . . . . . Flight 3 | . . . . 3 Utility 7 | 2 2 2 1 . Device 3 | . 1 1 1 . Storage 1 | 1 . . . . Processor 2 | . 1 1 . . Hackware . | . . . . . Protection 1 | 1 . . . . Artifact . | . . . . . Weapon 7 | 2 3 . 2 . Energy Gun 2 | 1 . . 1 . Energy Cannon . | . . . . . Ballistic Gun 4 | 1 2 . 1 . Ballistic Cannon 1 | . 1 . . . Launcher . | . . . . . Special Weapon . | . . . . . Impact Weapon . | . . . . . Slashing Weapon . | . . . . . Piercing Weapon . | . . . . . Special Melee Weapon . | . . . . . Unidentified Prototypes 1 | . . . 1 . Parts Lost 1 | . . . 1 . Power 1 | . . . 1 . Propulsion . | . . . . . Utility . | . . . . . Weapon . | . . . . . Highest Loss Streak 1 | . . . 1 . To Critical Strikes . | . . . . . Average Slot Usage (%) 99 | . 100 99 99 85 Engine 3 | . 5 . 2 8 Core 7 | . 6 10 7 . Treads 14 | . 7 20 20 3 Leg 7 | . 17 . . 9 Device 12 | . 5 9 19 16 Storage 10 | . 12 10 10 8 Processor 14 | . 6 20 20 16 Protection 6 | . 12 10 . . Energy Gun 8 | . 10 . 9 8 Ballistic Gun 7 | . 2 10 10 8 Ballistic Cannon 5 | . 11 10 . . Naked Turns . | . . . . . Heaviest Build 27 | 17 21 22 27 27 Greatest Support 46 | 20 46 46 46 46 Greatest Overweight (x) 6 | 5 1 . . 6 Average Overweight (x) . | . . . . . Largest Inventory Capacity 10 | 10 10 10 10 10 Average Capacity 9 | 9 10 10 10 10 Most Carried 10 | 4 7 10 10 10 Average Carried 6 | 1 4 7 8 9 Final Capacity 10 | 10 10 10 10 10 Final Carried 10 | 2 7 10 10 9 Class Distribution -------------------- 100% | Hacker-Mutant Dominant Class ---------------- Hacker-Mutant | -10/Materials Hacker-Mutant | -9/Materials Hacker-Mutant | -9/Storage Hacker-Mutant | -8/Materials Resources | -11 -10 -9 -9 -8 ----------- Run | Yrd Mat Mat Sto Mat Matter Collected 889 | 281 120 254 234 . Remotely 488 | . . 254 234 . Salvage Created 1782 | 251 387 340 804 . Parts 117 | 19 30 19 49 . Haulers Intercepted . | . . . . . Recyclers Shooed . | . . . . . Parts Field Recycled . | . . . . . Retrieved Matter . | . . . . . Parts Self-Destructed . | . . . . . Prevented . | . . . . . Kills | -11 -10 -9 -9 -8 ------- Run | Yrd Mat Mat Sto Mat Combat Hostiles Destroyed 27 | . 6 7 14 . Guns 19 | . 3 2 14 . Cannons 8 | . 3 5 . . Classes Destroyed 8 | 3 3 2 . . Worker 4 | 2 . . 2 . Builder 3 | . 2 . 1 . Tunneler 5 | 5 . . . . Recycler 3 | 1 . 1 1 . Watcher 6 | . 2 2 2 . Grunt 18 | . 6 5 7 . Duelist 2 | . . 1 1 . Sentry 7 | . . 1 6 . Best Kill Streak 6 | 4 6 3 4 . Combat Bots Only 5 | . 5 2 2 . Max Kills in Single Turn 1 | 1 1 1 1 . Gunslinging . | . . . . . Exploded . | . . . . . Melee . | . . . . . Uniques/NPCs Destroyed . | . . . . . Combat | -11 -10 -9 -9 -8 -------- Run | Yrd Mat Mat Sto Mat Hostile Shots Fired 110 | . 24 36 50 . Missed 28 | . 5 12 11 . Damage Taken 576 | . 150 196 230 . Core 108 | . 34 40 34 . Absorbed by Shields 102 | . . . 102 . Redirected to Shielding 16 | . 6 10 . . Ignored by Resistances 425 | . 95 126 204 . Regen/Repaired (Parts) 15 | . 15 . . . Core Remaining (%) 89 | 100 86 . 81 . Volleys Fired 108 | 11 22 27 48 . Largest 2 | 2 2 2 2 . Hottest 79 | 60 75 55 79 . Shots Fired 213 | 22 44 54 93 . Gun 164 | 22 22 27 93 . Cannon 49 | . 22 27 . . Launcher . | . . . . . Special . | . . . . . Kinetic 138 | 11 25 54 48 . Thermal 45 | . . . 45 . Explosive . | . . . . . Electromagnetic 30 | 11 19 . . . Robot Hit Streak 37 | 6 25 19 37 . Robot Miss Streak 3 | 1 2 3 2 . Penetration Max . | . . . . . Secondary Targets 1 | . . . 1 . Max Gunslinging Chain 1 | . . . 1 . Shots Hit Robots 168 | 15 32 44 77 . Core Hits 70 | 11 14 15 30 . Critical Kills . | . . . . . Critical Parts Destroyed . | . . . . . Critical Strikes 11 | 1 1 . 9 . Burn 9 | . . . 9 . Blast 1 | . 1 . . . Corrupt 1 | 1 . . . . Melee Attacks . | . . . . . Impact . | . . . . . Slashing . | . . . . . Piercing . | . . . . . Sneak Attacks . | . . . . . Combat Hostiles . | . . . . . Follow-up Attacks . | . . . . . Damage Inflicted 2474 | 207 470 639 1158 . Guns 1838 | 159 261 278 1140 . Cannons 564 | . 207 357 . . Explosions 48 | 48 . . . . Melee . | . . . . . Ramming 24 | . 2 4 18 . Kinetic 1486 | 42 244 635 565 . Thermal 623 | 48 . . 575 . Explosive . | . . . . . Electromagnetic 341 | 117 224 . . . Impact . | . . . . . Slashing . | . . . . . Piercing . | . . . . . Highest Corruption . | . . . . . Average Corruption . | . . . . . Corruption Purged . | . . . . . Corruption Blocked . | . . . . . Overload Shots . | . . . . . Overflow Damage 4 | . 4 . . . Projectiles 4 | . 4 . . . Explosions . | . . . . . Melee . | . . . . . Knockbacks 5 | . 1 4 . . Impact . | . . . . . Kinetic 5 | . 1 4 . . Secondary . | . . . . . Self-Inflicted Damage . | . . . . . Shots . | . . . . . Rammed 7 | . . 1 6 . Targets Rammed 9 | . 1 1 7 . Kicked 1 | . 1 . . . Crushed 1 | . . . 1 . Highest Temperature 207 | 40 207 15 162 . Average Temperature 50 | 15 72 8 54 . Received Heat Transfer 367 | . 114 129 124 . Effects 1 | . 1 . . . Energy Bleed 1 | . 1 . . . Siege Activations . | . . . . . Robots Corrupted . | . . . . . Combat Hostiles . | . . . . . Parts Fried . | . . . . . Impact Corruptions . | . . . . . Robots Melted . | . . . . . Combat Hostiles . | . . . . . Parts Melted 6 | . . . 6 . Heat Transferred 2146 | . . . 2146 . Parts Sabotaged . | . . . . . Parts Stolen . | . . . . . Parts Stripped . | . . . . . Power Chain Reactions 1 | 1 . . . . Alert | -11 -10 -9 -9 -8 ------- Run | Yrd Mat Mat Sto Mat Peak Influence 285 | 40 199 215 285 . Initial 64 | . 19 . 64 . Average 95 | 17 68 102 144 . Maximum Alert Level 1 | . . 1 1 . Low Security (%) 80 | 100 100 74 57 100 Level 1 19 | . . 25 42 . Level 2 . | . . . . . Level 3 . | . . . . . Level 4 . | . . . . . Level 5 . | . . . . . High Security . | . . . . . Max Security . | . . . . . Squads Dispatched 3 | . 1 . 2 . Investigation 1 | . 1 . . . Extermination . | . . . . . Reinforcement 2 | . . . 2 . Assault . | . . . . . Garrison . | . . . . . Intercept . | . . . . . Searches Triggered . | . . . . . Construction Impeded 1 | . . . 1 . Haulers Reinforced . | . . . . . Active Scanning Responses . | . . . . . Cargo Convoy Interrupts . | . . . . . Stealth | -11 -10 -9 -9 -8 --------- Run | Yrd Mat Mat Sto Mat Distress Signals 4 | . . 3 1 . Communications Jammed . | . . . . . Distress Signals . | . . . . . Times Spotted 38 | . 9 10 19 . Peak Tracking Total 6 | . 6 3 4 . Tactical Retreats 2 | . 1 . 1 . Traps | -11 -10 -9 -9 -8 ------- Run | Yrd Mat Mat Sto Mat Traps Triggered 1 | . 1 . . . Indirectly . | . . . . . Trap Hack Attempts . | . . . . . Triggered . | . . . . . Disarmed . | . . . . . Reprogrammed . | . . . . . Reused . | . . . . . Traps Extracted . | . . . . . Installed . | . . . . . Triggered . | . . . . . Machines | -11 -10 -9 -9 -8 ---------- Run | Yrd Mat Mat Sto Mat Machines Disabled 2 | . 1 1 . . Max in Single Turn 1 | . 1 1 . . Machines Repaired . | . . . . . Machines Dismantled . | . . . . . Machines Sabotaged . | . . . . . Overloaded Fab Kills . | . . . . . Hacking | -11 -10 -9 -9 -8 --------- Run | Yrd Mat Mat Sto Mat Machines Accessed 3 | . 2 . 1 . Terminals 1 | . . . 1 . Fabricators . | . . . . . Repair Stations 1 | . 1 . . . Recycling Units 1 | . 1 . . . Scanalyzers . | . . . . . Garrison Access . | . . . . . Total Hacks 15 | . 12 . 3 . Successful 10 | . 8 . 2 . Failed 5 | . 4 . 1 . Catastrophic . | . . . . . Database Lockouts . | . . . . . Manual . | . . . . . Terminals 3 | . . . 3 . Fabricators . | . . . . . Repair Stations 2 | . 2 . . . Recycling Units 10 | . 10 . . . Scanalyzers . | . . . . . Garrison Access . | . . . . . Terminal Hacks 2 | . . . 2 . Security Status 1 | . . . 1 . Hauler Manifests 1 | . . . 1 . Fabricator Hacks . | . . . . . Repair Station Hacks 2 | . 2 . . . Scan Component 1 | . 1 . . . Repair 1 | . 1 . . . Recycling Unit Hacks 6 | . 6 . . . Recycle Component 1 | . 1 . . . Report Inventory 1 | . 1 . . . Retrieve Components 4 | . 4 . . . Scanalyzer . | . . . . . Garrison Access Hacks . | . . . . . Unauthorized Hacks . | . . . . . Terminals . | . . . . . Fabricators . | . . . . . Repair Stations . | . . . . . Recycling Units . | . . . . . Scanalyzers . | . . . . . Garrison Access . | . . . . . Data Cores Recovered . | . . . . . Used . | . . . . . Hacking Detections 3 | . 2 . 1 . Full Trace Events 2 | . 1 . 1 . Feedback Events . | . . . . . Feedback Blocked . | . . . . . Robot Schematics Acquired . | . . . . . Robots Built . | . . . . . Authchips . | . . . . . Time . | . . . . . Total Robot Build Rating . | . . . . . Part Schematics Acquired . | . . . . . Parts Built . | . . . . . Authchips . | . . . . . Time . | . . . . . Total Part Build Rating . | . . . . . Parts Repaired 1 | . 1 . . . Time 26 | . 26 . . . Parts Recycled 1 | . 1 . . . Recycled Matter . | . . . . . Retrieved Matter . | . . . . . Retrieved Components 3 | . 3 . . . Parts Scanalyzed . | . . . . . Part Schematics Acquired . | . . . . . Parts Damaged . | . . . . . Bothacking | -11 -10 -9 -9 -8 ------------ Run | Yrd Mat Mat Sto Mat Used RIF Installer . | . . . . . Robots Hacked . | . . . . . Non-combat . | . . . . . Combat . | . . . . . Robot Hacks Applied . | . . . . . Relay Couplers Released . | . . . . . Fabnet Peak Effective % . | . . . . . Robots Rewired . | . . . . . Allies Hacked . | . . . . . Hacks Repelled . | . . . . . Allies | -11 -10 -9 -9 -8 -------- Run | Yrd Mat Mat Sto Mat Total Allies . | . . . . . Largest Group . | . . . . . Highest-Rated Group . | . . . . . Highest-Rated Ally . | . . . . . Total Orders . | . . . . . Ally Attacks . | . . . . . Total Damage . | . . . . . Kills . | . . . . . Allies Corrupted . | . . . . . Allies Melted . | . . . . . Intel | -11 -10 -9 -9 -8 ------- Run | Yrd Mat Mat Sto Mat Robot Analysis Total . | . . . . . Derelict Logs Recovered . | . . . . . Drone Launches . | . . . . . Drone Recoveries . | . . . . . Exploration | -11 -10 -9 -9 -8 ------------- Run | Yrd Mat Mat Sto Mat Turns Passed 2319 | 208 820 328 880 83 Spaces Moved 1094 | 111 341 148 453 41 Core 23 | 23 . . . . Treads 716 | . 107 148 453 8 Legs 348 | 88 234 . . 26 Wheels . | . . . . . Hover . | . . . . . Flight 7 | . . . . 7 Fastest Speed 50 | 50 120 160 160 120 Average Speed 154 | 119 153 160 160 168 Slowest Speed 535 | 300 190 160 160 535 Overloaded Moves . | . . . . . Propulsion Burnouts . | . . . . . Robots Hopped . | . . . . . Cave-ins Triggered . | . . . . . Exploration Rate (%) 27 | 6 51 19 55 5 Regions Visited 4 Branch Regions 1 Pre-discovered Areas . | . . . . . Known Exits Taken 4 | 1 1 1 1 . Unknown Exits Taken . | . . . . . Scrap Searched . | . . . . . Spaces Dug . | . . . . . Terrain Destroyed . | . . . . . Melee . | . . . . . Projectile . | . . . . . AOE . | . . . . . Terrain Rammed . | . . . . . Walls Destroyed . | . . . . . Machines Disabled . | . . . . . Actions | -11 -10 -9 -9 -8 --------- Run | Yrd Mat Mat Sto Mat Total 1532 | 167 599 185 523 58 Wait 235 | 30 202 3 . . Move 1090 | 110 340 147 452 41 Hop . | . . . . . Pick Up 41 | 9 16 5 6 5 Fast Attach 2 | . . . 1 1 Attach 24 | 7 8 2 3 4 Detach 2 | . 2 . . . Swap . | . . . . . Drop 21 | . 8 . 6 7 Fire 108 | 11 22 27 48 . Melee . | . . . . . Ram . | . . . . . Kick 1 | . 1 . . . Crush 8 | . . 1 7 . Escape Stasis . | . . . . . Rewire . | . . . . . Trap . | . . . . . Miscellaneous . | . . . . . Route ------- -11/Scrapyard -10/Materials -9/Materials -9/Storage -8/Materials History --------- Turn | Location | Event 16 | -11/Scrapyard | Identified exit to Materials 16 | -11/Scrapyard | Discovered exit to Materials (range 15) 209 | -11/Scrapyard | Entered Materials 209 | -10/Materials | Evolved 1 slot: Utility x1 300 | -10/Materials | Build established: Hacker-Mutant 753 | -10/Materials | Identified exit to Materials 753 | -10/Materials | Discovered exit to Materials (range 17) 1017 | -10/Materials | Repaired Tractor Beam 1029 | -10/Materials | Entered another Materials area 1029 | -9/Materials | Evolved 2 slots: Utility x2 1239 | -9/Materials | Identified exit to Storage 1239 | -9/Materials | Discovered exit to Storage (range 12) 1357 | -9/Materials | Entered Storage 2205 | -9/Storage | Identified exit to Materials 2205 | -9/Storage | Discovered exit to Materials (range 18) 2237 | -9/Storage | Entered Materials 2237 | -8/Materials | Evolved 2 slots: Power x1, Propulsion x1 2320 | -8/Materials | Self-destructed Last Messages --------------- 02150_ U-05 Engineer lays Concrete. 02153_ T-07 Excavator is excavating. 02155_ U-05 Engineer lays Concrete. 02205_ EXIT=FOUND: MATERIALS PARAMETERS=POWER+1,PROPULSION+1 LOCATION=MATERIALS GOAL=ESCAPE Different forms of propulsion may not be used simultaneously, Imp. Treads automatically deactivated. 02251_ Dropped Imp. Treads. 02264_ Acquired Imp. Carbon-fiber Leg. 02270_ Dropped VTOL Module. 02272_ Acquired Imp. Carbon-fiber Leg. 02274_ Dropped VTOL Module. 02277_ Acquired VTOL Module. 02292_ Dropped VTOL Module. 02292_ Dropped Lgt. Treads. 02295_ Acquired VTOL Module. 02320_ Connecting with Recycling Unit... Map ----- +----------------------------------------------------+ | ?????????????????????????????????????????????????? | | ?????????????????????????????????????????????????? | | ?????????????????????????????????????????????????? | | ???????????????????????????? ???????????????????? | | ???????????????????????????? ??????????????????? | | ???????????????????????????? ??????????????????? | | ???????????????????????????# ??????????????????? | | ???????????????????????????# ??######??????????? | | ???????????????????????????# ? ???????????? | | ???????????????????????????+ ??????????? | | ???????????????????????????# "" ???????????? | | ???????????????????????????# "T ???????????? | | ???????????????????????????# "" """?? #???????? | | ???????????????????????????# """ #???????? | | ???????????????????????????# """ #???????? | | ???????????????????????????#^ """ #???????? | | ???????????????????????????# #???????? | | ???????????????????????????# #???????? | | ???????????????????????????# #???????? | | ???????????????????????????# +???????? | | ???????????????????????????# #???????? | | ??????????????????????#+#### #"""T"""#?????????? | | ??????????????????????# #????#????????????? | | ??????????????????????# #?????????????????? | | ??????????????????????#""" #?????????????????? | | ??????????????????????#"Y@ #?????????????????? | | ??????????????????????#""" #####?????????????? | | ??????????????????????# !!#?????????????? | | ??????????????????????# !!#?????????????? | | ??????????????????????+ = !!#?????????????? | | ??????????????????????# = !!#?????????????? | | ??????????????????????###### =#?????????????? | | ???????????????????????????# = = #?????????????? | | ???????????????????????????#########?????????????? | | ?????????????????????????????????????????????????? | | ?????????????????????????????????????????????????? | | ?????????????????????????????????????????????????? | | ?????????????????????????????????????????????????? | | ?????????????????????????????????????????????????? | | ?????????????????????????????????????????????????? | | ?????????????????????????????????????????????????? | | ?????????????????????????????????????????????????? | | ?????????????????????????????????????????????????? | | | | | | | | | | | | | | | +----------------------------------------------------+ Best States ------------- Heat Dissipation 31 Energy Generation 14 Energy Capacity 280 Matter Stores 300 Matter Capacity 300 Sight Range 18 Terrain Scan Range 16 Terrain Scan Density 85 Resistance: KI 35 Resistance: TH 35 Resistance: EX 35 Resistance: EM 35 Resistance: I 35 Resistance: S 35 Resistance: P 35 Power Shielding 33 Evasion (%) 55 Recoil Reduction 2 Offensive Hacking 20 Item Schematics ----------------- None Robot Schematics ------------------ None Fabricated ------------ Nothing Alien Tech Used ----------------- None Achievements -------------- Shopping List Challenges ------------ None Game ------ Seed BombTransportScrap Manual? 0 Play Time 00:15:37 Cumulative 2.4 hours Start 2024.04.15 @ 14:14:24 End 2024.04.15 @ 17:28:16 Sessions 3 Manual Loads 0 Difficulty Explorer Special Mode None Game No. 14 Rogue 0 Adventurer 0 Explorer 14 Win Type - Total 0 Types 0/0/0/0/0/0/0/0/0 Lore% 3 Gallery% 9 Achievement% 9 Wizard Run 0 Options --------- Layout 2 ASCII 0 Keyboard 0 Movement Mouse Keybinds 0 Fullscreen 1 Font 24/Smallcaps Map View 50x44 Zoom Use 0% Tactical HUD 1 Map Filters NONE Filters NONE Steam 1 RUN: b6a02b3b-7e31-415a-822f-19256033d420